bitfinex-derivatives/quotes_ETHF0:USTF0_20250803
["timestamp","ask_amount","ask_price","bid_price","bid_amount"]
[1754241650960,2.6337,3487.6,3487.5,2.5711]
[1754241651762,1.6248,3487.9,3487.8,1.066]
[1754241651960,1.6248,3487.9,3487.8,2.5711]
[1754241652365,2.6337,3487.9,3487.8,2.5711]
[1754241652664,2.0564,3487.9,3487.8,2.5711]
[1754241652862,0.5548,3488.2,3487.9,1.1055]
[1754241653067,0.3663,3488.2,3488.1,2.5711]
[1754241653561,0.6788,3488.2,3488.1,2.5711]
[1754241654063,1.1329,3488.2,3488.1,2.5711]
[1754241654459,1.6877,3488.2,3488.1,2.5711]
[1754241658065,2.6337,3488.2,3488.1,2.5711]
[1754241658371,3.20707,3488.1,3488.0,3.2078]
[1754241659064,2.75301,3487.9,3487.8,0.748]
[1754241659270,2.6337,3487.6,3487.5,5.4609]
[1754241659669,2.6337,3487.6,3487.5,5.7789]
[1754241660371,2.0564,3487.6,3487.5,5.7789]
[1754241660666,1.6877,3487.6,3487.5,5.7789]
[1754241660869,2.0564,3487.6,3487.5,5.7789]
[1754241661066,2.6337,3487.6,3487.5,5.7789]
[1754241662268,2.6337,3487.6,3487.5,3.2078]
[1754241662469,2.6337,3487.3,3487.2,2.5711]
[1754241662961,2.6337,3487.2,3487.1,3.5775]
[1754241663368,2.6337,3487.2,3487.1,5.7789]
[1754241663565,2.6337,3487.2,3487.1,3.2078]
[1754241663765,0.6788,3486.8,3486.7,5.7548855]
[1754241663963,2.6337,3486.8,3486.7,0.9461]
[1754241664367,2.6337,3486.8,3486.7,1.3158]
[1754241664568,2.6337,3486.8,3486.7,0.3697]
[1754241664762,2.6337,3486.8,3486.7,1.8535]
[1754241664963,2.6337,3486.8,3486.7,2.2531]
[1754241665372,2.6337,3486.8,3486.7,1.3158]
[1754241666576,0.735,3486.6,3486.5,1.6853]
[1754241666774,2.6337,3486.6,3486.5,2.2531]
[1754241667279,2.6337,3486.6,3486.5,2.5711]
[1754241669280,1.6877,3486.6,3486.5,5.79540997]
[1754241669575,1.6877,3486.6,3486.5,2.5711]
[1754241669982,2.0564,3486.6,3486.5,2.5711]
[1754241671183,2.62993,3487.2,3487.1,2.5711]
[1754241671479,3.20723,3487.2,3487.1,2.5711]
[1754241671674,0.6788,3487.3,3487.2,0.3783]
[1754241671875,2.0564,3487.3,3487.2,4.29030997]
[1754241672076,2.6337,3487.3,3487.2,4.29030997]
[1754241672278,2.6337,3487.3,3487.2,1.3158]
[1754241672476,2.15975,3487.0,3486.7,3.2078]
[1754241672781,1.6877,3486.4,3486.3,4.2738]
[1754241673485,1.6877,3486.4,3486.3,5.7789]
[1754241674082,0.6788,3486.4,3486.3,5.7789]
[1754241674681,1.1651,3486.4,3486.3,5.7789]
[1754241675786,1.7086,3486.4,3486.3,5.7789]
[1754241675985,2.0773,3486.4,3486.3,5.7789]
[1754241678183,1.11709,3486.8,3486.3,6.35255]
[1754241678384,3.20149,3486.8,3486.7,5.7533]
[1754241679586,0.57359,3486.8,3486.7,5.7533]
[1754241679787,2.27464,3487.1,3487.0,1.032]
[1754241680092,2.63574,3487.1,3487.0,5.76980997]
[1754241680293,3.20144,3487.1,3487.0,5.76980997]
[1754241683888,3.20144,3487.1,3487.0,1.2896]
[1754241684190,0.57362,3486.6,3486.5,0.7265]
[1754241684494,1.0324,3486.6,3486.5,2.5455]
[1754241684995,2.6279,3486.6,3486.5,2.5455]
[1754241685194,2.6279,3486.6,3486.5,1.8419]
[1754241685399,2.6279,3486.6,3486.5,1.2896]
[1754241688394,2.6279,3486.6,3486.5,2.24]
[1754241688694,0.57359,3486.8,3486.5,1.032]
[1754241688891,2.63579,3486.8,3486.7,5.76980997]
[1754241689198,3.20149,3486.8,3486.7,5.76980997]
[1754241689594,1.05986,3487.0,3486.7,4.25630997]
[1754241689795,2.63576,3487.0,3486.9,2.5455]
[1754241689997,1.60602,3486.7,3486.6,1.2896]
[1754241690195,3.20152,3486.7,3486.6,2.5455]
[1754241690390,2.6279,3486.7,3486.6,2.5455]
[1754241690596,1.1576,3486.7,3486.6,2.5455]
[1754241690797,0.4863,3486.9,3486.6,1.4301]
[1754241690995,0.57356,3487.0,3486.8,5.76980997]
[1754241691299,1.60596,3487.0,3486.9,2.5455]
[1754241691596,1.606,3486.7,3486.6,1.2896]
[1754241691802,3.2015,3486.7,3486.6,1.2896]
[1754241692901,2.6358,3486.7,3486.6,5.76980997]
[1754241693294,3.2015,3486.7,3486.6,5.76980997]
[1754241693899,3.2015,3486.7,3486.6,4.51390997]
[1754241694397,0.6681,3486.4,3486.3,5.7548855]
[1754241694600,0.57367,3486.3,3486.0,2.5470855]
[1754241694805,2.6279,3486.1,3486.0,2.5470855]
[1754241694996,3.20161,3486.1,3485.9,2.5470855]
[1754241695196,1.0324,3486.1,3486.0,1.2896]
[1754241695803,2.6279,3486.1,3486.0,1.2896]
[1754241696905,2.6279,3486.1,3486.0,2.24]
[1754241697106,2.6279,3485.9,3485.8,2.5455]
[1754241697504,2.6279,3485.9,3485.8,5.76980997]
[1754241697803,0.307,3485.9,3485.8,5.76980997]
[1754241698101,0.4863,3486.2,3485.8,4.81940997]
[1754241698306,0.307,3486.3,3486.2,2.5455]
[1754241698502,1.7011,3486.3,3486.2,2.5455]
[1754241698697,2.0622,3486.3,3486.2,2.5455]
[1754241699007,2.6279,3486.3,3486.2,2.5455]
[1754241699209,2.6279,3486.3,3486.2,0.9301]
[1754241699909,3.2078,3486.5,3485.7,4.4866]
[1754241699910,2.6279,3485.8,3485.7,4.4866]
[1754241700199,2.6279,3485.8,3485.7,3.2078]
[1754241700803,0.57373,3485.9,3485.8,1.5135]
[1754241701004,0.57373,3485.9,3485.8,2.5455]
[1754241701200,0.5657,3486.1,3485.8,2.5455]
[1754241701201,0.4863,3486.1,3485.8,2.5455]
[1754241701410,2.27475,3486.4,3486.3,1.032]
[1754241701702,2.27475,3486.4,3486.3,4.25630997]
[1754241701908,2.27475,3486.4,3486.3,5.76980997]
[1754241702304,2.63585,3486.4,3486.3,5.76980997]
[1754241702810,3.20155,3486.4,3486.3,5.76980997]
[1754241703503,0.5737,3486.1,3486.0,0.9504]
[1754241703708,1.551,3486.1,3486.0,2.5201]
[1754241703910,1.1899,3486.1,3486.0,5.74440997]
[1754241704211,0.6683,3486.1,3486.0,5.74440997]
[1754241704413,1.1899,3486.1,3486.0,5.74440997]
[1754241704611,1.6759,3486.1,3486.0,5.74440997]
[1754241704810,0.6683,3486.1,3486.0,5.74440997]
[1754241705709,0.6683,3486.1,3486.0,3.58380997]
[1754241706012,1.1543,3486.1,3486.0,5.72530997]
[1754241706416,1.6759,3486.1,3486.0,5.72530997]
[1754241706911,1.11586,3486.4,3486.0,5.72530997]
[1754241707112,0.6703,3486.3,3486.2,5.7088]
[1754241707309,0.6703,3486.3,3486.2,8.93310997]
[1754241708221,2.035,3486.3,3486.2,8.93310997]
[1754241708518,2.5772,3486.3,3486.2,8.93310997]
[1754241708720,2.5772,3486.3,3486.2,5.7088]
[1754241709622,1.6779,3486.3,3486.2,5.7088]
[1754241710011,0.57361,3486.7,3486.3,0.5319]
[1754241710213,2.60861,3486.7,3486.6,2.501]
[1754241710419,3.15081,3486.7,3486.6,2.501]
[1754241711423,1.6779,3486.7,3486.6,2.501]
[1754241711615,1.6779,3486.7,3486.6,5.7088]
[1754241711817,2.5772,3486.7,3486.6,5.7088]
[1754241713026,2.5772,3486.7,3486.6,3.9352]
[1754241714009,1.05968,3486.3,3486.0,3.2078]
[1754241714213,2.5772,3486.1,3486.0,4.458]
[1754241714922,2.5772,3486.1,3486.0,3.2078]
[1754241715220,1.0274,3485.9,3485.8,0.7274]
[1754241715420,1.0274,3485.9,3485.8,1.2502]
[1754241715619,1.0274,3485.7,3485.6,4.458]
[1754241715817,2.035,3485.7,3485.6,5.7088]
[1754241716013,2.5772,3485.7,3485.6,5.7088]
[1754241716618,2.5772,3485.7,3485.6,4.458]
[1754241719120,2.5772,3485.7,3485.6,5.3884]
[1754241719520,2.5772,3485.7,3485.6,5.7088]
[1754241720622,1.0076,3486.1,3485.6,4.2556]
[1754241720923,1.0076,3486.1,3486.0,2.5005]
[1754241720924,2.79382,3486.1,3486.0,2.5005]
[1754241721125,3.15092,3486.1,3486.0,2.5005]
[1754241721929,2.5772,3486.1,3486.0,2.5005]
[1754241723320,2.5772,3486.1,3486.0,0.3725]
[1754241723521,1.549,3485.9,3485.8,0.3725]
[1754241723723,2.5772,3485.7,3485.6,3.7306]
[1754241724030,2.5772,3485.7,3485.6,5.7083]
[1754241725029,2.035,3485.7,3485.6,5.7083]
[1754241725529,2.5772,3485.7,3485.6,5.7083]
[1754241726030,2.035,3485.7,3485.6,5.7083]
[1754241726431,1.0274,3485.7,3485.6,5.7083]
[1754241726722,0.486,3485.9,3485.7,1.0547]
[1754241726929,2.035,3485.9,3485.8,2.5005]
[1754241727129,1.0076,3486.5,3485.9,1.4527]
[1754241727425,2.5772,3486.5,3486.4,2.5005]
[1754241727631,3.15084,3486.5,3486.4,2.5005]
[1754241727929,0.6703,3486.5,3486.4,2.1025]
[1754241728122,1.6779,3486.5,3486.4,2.5005]
[1754241728322,2.035,3486.5,3486.4,2.5005]
[1754241728527,2.5772,3486.5,3486.4,1.2502]
[1754241729430,2.5772,3486.5,3486.4,0.3725]
[1754241729634,1.0274,3486.2,3486.1,2.5005]
[1754241729834,2.5772,3486.2,3486.1,2.5005]
[1754241730233,3.2078,3486.6,3485.6,3.2078]
[1754241730234,2.5772,3485.7,3485.6,5.1855]
[1754241730726,2.5772,3485.7,3485.6,5.7083]
[1754241731121,2.5772,3485.7,3485.6,4.458]
[1754241731431,2.5772,3485.7,3485.6,5.7083]
[1754241732032,2.5772,3485.7,3485.6,3.2078]
[1754241732625,2.5772,3485.7,3485.6,4.458]
[1754241732830,3.15103,3485.3,3485.2,3.2078]
[1754241733632,3.15103,3485.3,3485.2,3.7322]
[1754241733837,3.15103,3485.3,3485.2,4.4229]
[1754241734031,3.15103,3485.3,3485.2,3.5436]
[1754241734236,1.0374,3484.9,3484.8,5.6497]
[1754241734432,2.5892,3484.9,3484.8,5.6497]
[1754241735636,1.01,3485.6,3484.8,8.58621094]
[1754241735934,1.7013,3485.6,3485.5,2.4419]
[1754241736234,0.6913,3485.6,3485.5,2.4419]
[1754241736434,1.7013,3485.6,3485.5,2.4419]
[1754241736836,0.6913,3485.6,3485.5,2.4419]
[1754241737133,3.78151,3486.1,3485.5,1.57129]
[1754241737333,1.7013,3485.8,3485.7,2.4419]
[1754241738137,4.2178,3486.1,3485.7,2.4419]
[1754241738339,4.4339,3486.1,3486.0,2.4419]
[1754241738526,4.9091,3486.1,3486.0,2.4419]
[1754241738733,1.7013,3486.1,3486.0,2.4419]
[1754241738929,3.9202,3486.5,3486.4,0.6718]
[1754241739238,4.2452,3486.5,3486.4,1.1962]
[1754241739533,5.89544,3486.5,3486.4,1.1962]
[1754241739730,6.37064,3486.5,3486.4,1.1962]
[1754241742038,3.8991,3486.5,3486.4,2.4419]
[1754241742341,3.2078,3486.5,3486.4,2.4419]
[1754241743835,3.2078,3487.1,3486.4,5.6497]
[1754241744040,1.61094,3487.1,3487.0,0.9975]
[1754241744241,3.16274,3487.1,3487.0,1.1962]
[1754241746342,3.16274,3487.1,3487.0,0.336]
[1754241746541,0.57357,3486.9,3486.8,1.4444]
[1754241746846,3.16277,3486.9,3486.8,0.5244]
[1754241747046,3.16277,3486.9,3486.8,1.1962]
[1754241747534,3.16277,3486.9,3486.8,2.4419]
[1754241747940,1.74004,3487.1,3487.0,0.9975]
[1754241748242,1.1665,3487.1,3487.0,2.4419]
[1754241748443,1.2261,3487.4,3487.3,2.0433]
[1754241748743,1.2261,3487.4,3487.3,2.4419]
[1754241749148,1.79959,3487.4,3487.3,2.4419]
[1754241749447,2.27479,3487.4,3487.3,2.4419]
[1754241750544,3.2078,3487.5,3487.4,1.4444]
[1754241750749,3.2078,3487.5,3487.4,2.4419]
[1754241751345,2.27475,3487.7,3487.6,0.9975]
[1754241751544,2.27475,3487.7,3487.6,2.4419]
[1754241752640,3.2078,3487.9,3487.6,2.4419]
[1754241752641,0.57342,3487.8,3487.6,0.9975]
[1754241752841,6.37041,3487.9,3487.8,2.1162]
[1754241753039,6.37041,3487.9,3487.8,2.4419]
[1754241753248,6.37041,3487.9,3487.4,0.57348]
[1754241753249,3.78121,3487.9,3487.4,0.57348]
[1754241753452,2.5892,3487.4,3487.3,4.404]
[1754241753849,2.5892,3487.4,3487.3,5.324]
[1754241754154,2.5892,3486.9,3486.8,5.6497]
[1754241755146,2.5892,3486.9,3486.8,4.404]
[1754241755453,2.5892,3486.9,3486.8,3.2078]
[1754241757455,2.5892,3486.6,3486.5,2.1162]
[1754241757654,2.5892,3486.6,3486.3,3.2078]
[1754241757849,2.5892,3486.5,3486.4,0.5244]
[1754241758048,2.5892,3486.5,3486.4,1.1962]
[1754241759854,2.5892,3486.2,3486.1,1.5219]
[1754241760057,2.62809,3486.2,3486.1,2.4419]
[1754241760555,3.16289,3486.2,3486.1,2.4419]
[1754241760750,2.5892,3486.2,3486.1,2.4419]
[1754241761155,2.5892,3486.2,3486.1,1.1962]
[1754241761550,2.5892,3486.2,3486.1,0.6718]
[1754241761754,2.5892,3486.2,3486.1,0.3358]
[1754241762058,1.0374,3486.0,3485.9,4.404]
[1754241762251,2.5892,3486.0,3485.9,5.6497]
[1754241764755,1.7013,3486.0,3485.9,5.6497]
[1754241764959,1.1665,3486.0,3485.9,5.6497]
[1754241766660,3.7315,3486.7,3486.0,1.4466]
[1754241766862,5.8051,3486.7,3486.6,2.1391]
[1754241767257,6.2538,3486.7,3486.6,2.1391]
[1754241768358,6.2538,3486.7,3486.6,1.2251]
[1754241768758,6.2538,3486.7,3486.6,0.3552]
[1754241769161,6.2538,3486.7,3486.4,1.4466]
[1754241769366,1.9784,3486.6,3486.5,0.5326]
[1754241770059,2.4724,3486.6,3486.5,0.8878]
[1754241770662,2.4724,3486.6,3486.5,1.2251]
[1754241771056,3.04602,3486.6,3486.5,2.1391]
[1754241771956,3.04602,3486.6,3486.5,1.2251]
[1754241776066,3.04602,3486.6,3486.5,1.7429]
[1754241776263,3.04602,3486.6,3486.5,2.1391]
[1754241776471,3.04602,3486.6,3486.5,2.4395]
[1754241777461,2.5521,3486.1,3486.0,2.4395]
[1754241777658,3.0461,3486.1,3486.0,2.4395]
[1754241778364,3.0461,3486.1,3486.0,1.2251]
[1754241779363,3.0461,3486.1,3485.9,3.2078]
[1754241779566,1.5797,3486.1,3485.9,3.2078]
[1754241779764,3.04615,3485.8,3485.7,2.1391]
[1754241780064,3.04615,3485.8,3485.7,1.2251]
[1754241780269,3.04615,3485.8,3485.7,0.3552]
[1754241780569,3.04623,3485.4,3485.3,1.2251]
[1754241780870,3.04623,3485.4,3485.3,2.4395]
[1754241781462,1.9784,3485.0,3484.9,3.2078]
[1754241781772,2.4724,3484.7,3484.6,1.9069]
[1754241781973,1.6469,3484.7,3484.6,2.4395]
[1754241782560,0.6745,3484.7,3484.5,3.2078]
[1754241782775,0.6745,3484.7,3484.6,2.4395]
[1754241783070,1.6469,3484.7,3484.6,2.4395]
[1754241783675,0.9724,3485.0,3484.9,0.3552]
[1754241783873,1.6469,3485.0,3484.9,2.4395]
[1754241784073,0.6745,3484.7,3484.6,1.2251]
[1754241784269,2.4724,3484.7,3484.6,2.4395]
[1754241786568,2.07395,3484.6,3484.5,3.9003]
[1754241786775,3.04635,3484.6,3484.5,1.2251]
[1754241787474,2.4724,3484.6,3484.5,1.5255]
[1754241787679,3.04625,3485.2,3485.1,2.4395]
[1754241789072,3.04625,3485.2,3485.1,1.2251]
[1754241789669,1.168,3484.9,3484.8,1.747]
[1754241789876,1.6656,3484.8,3484.7,0.6925]
[1754241790073,2.4724,3484.8,3484.7,2.4395]
[1754241791174,1.02257,3485.1,3485.0,1.9093]
[1754241791473,1.02257,3485.1,3485.0,2.4419]
[1754241791474,3.04627,3485.1,3485.0,2.4419]
[1754241792474,3.04627,3485.1,3485.0,1.2251]
[1754241792681,3.04628,3485.0,3484.9,1.2251]
[1754241793075,3.04628,3485.0,3484.9,2.4419]
[1754241793276,2.55228,3485.0,3484.9,2.4419]
[1754241793673,0.57386,3485.2,3484.9,2.4419]
[1754241793976,3.2078,3485.3,3485.1,2.3839]
[1754241794177,3.78163,3485.3,3485.2,2.3839]
[1754241794486,5.34743,3485.3,3485.2,2.3839]
[1754241795578,3.8464,3485.3,3485.2,2.3839]
[1754241795879,3.2078,3485.3,3485.2,2.3839]
[1754241796472,0.57381,3485.5,3485.4,2.3839]
[1754241796876,0.57379,3485.6,3485.4,2.3839]
[1754241797182,0.6386,3485.5,3485.4,0.9829]
[1754241797371,2.4086,3485.5,3485.4,0.9829]
[1754241797573,2.4086,3485.5,3485.4,2.3839]
[1754241798282,1.9151,3485.5,3485.4,2.3839]
[1754241800185,1.5658,3485.5,3485.4,2.3839]
[1754241801488,0.9879,3485.3,3485.2,4.1907]
[1754241801883,2.4086,3485.3,3485.2,4.1907]
[1754241802284,2.4086,3485.3,3485.2,5.5917]
[1754241802784,0.6386,3485.3,3485.2,5.5917]
[1754241802984,1.65501,3485.5,3485.4,0.9829]
[1754241803184,0.57377,3485.7,3485.5,1.401]
[1754241803486,0.57377,3485.7,3485.2,3.78164]
[1754241803487,2.13957,3485.7,3485.6,2.3839]
[1754241804689,2.98237,3485.7,3485.6,2.3839]
[1754241805994,0.9231,3485.5,3485.4,0.6642]
[1754241806191,1.5617,3485.5,3485.4,1.1575]
[1754241806493,1.5617,3485.5,3485.4,2.0652]
[1754241806684,2.4889,3485.5,3485.4,2.3839]
[1754241806885,1.655,3485.5,3485.4,2.3839]
[1754241807281,0.57379,3485.6,3485.5,2.3839]
[1754241808289,1.21239,3485.6,3485.5,2.3839]
[1754241808592,2.13959,3485.6,3485.5,2.3839]
[1754241808785,2.98239,3485.6,3485.5,2.3839]
[1754241808997,2.98239,3485.6,3485.5,1.1575]
[1754241809386,1.25163,3485.3,3485.2,5.0984]
[1754241809596,2.98243,3485.3,3485.2,5.5917]
[1754241811104,2.48893,3485.3,3485.2,5.5917]
[1754241812490,2.98243,3485.3,3485.2,5.5917]
[1754241813796,2.98243,3485.3,3485.2,3.2078]
[1754241814098,1.4344,3485.8,3484.8,0.4933]
[1754241814099,2.4086,3484.9,3484.8,2.3839]
[1754241814493,2.5398,3485.5,3485.4,0.6642]
[1754241814698,1.2124,3485.5,3485.4,2.3839]
[1754241814891,0.57379,3485.6,3485.4,2.3839]
[1754241815093,0.57379,3485.6,3485.5,0.8915]
[1754241815294,0.6386,3485.7,3485.6,0.9829]
[1754241815602,0.3101,3485.7,3485.6,2.3839]
[1754241816096,2.13954,3485.9,3485.8,0.9829]
[1754241816299,2.13954,3485.9,3485.8,2.3839]
[1754241817002,2.48884,3485.9,3485.8,2.3839]
[1754241817795,2.98234,3485.9,3485.8,2.3839]
[1754241819191,3.2078,3486.4,3485.8,0.9829]
[1754241819498,0.9272,3487.0,3486.4,1.401]
[1754241819700,3.91823646,3486.9,3486.8,1.1575]
[1754241820002,3.763001,3486.9,3486.8,0.836]
[1754241820204,3.763001,3486.9,3486.8,0.3427]
[1754241820403,2.98217,3486.9,3486.8,0.3427]
[1754241820798,2.98217,3486.9,3486.8,0.836]
[1754241821400,2.98217,3486.9,3486.8,0.3427]
[1754241821604,2.98217,3486.9,3486.6,0.4933]
[1754241821900,2.48872,3486.6,3486.5,1.3811]
[1754241822100,2.13937,3486.9,3486.8,0.9829]
[1754241822301,2.13937,3486.9,3486.8,2.3839]
[1754241823898,2.48867,3486.9,3486.8,2.3839]
[1754241826509,3.00527,3486.9,3486.8,2.3839]
[1754241827008,3.00527,3486.9,3486.8,2.0652]
[1754241827305,1.56452,3486.6,3486.5,4.6892]
[1754241827505,3.03332,3486.6,3486.5,5.0875]
[1754241827900,3.03332,3486.6,3486.5,5.6004]
[1754241828908,2.51672,3486.6,3486.5,5.6004]
[1754241829201,2.16832,3486.6,3486.5,5.6004]
[1754241830304,0.57367,3486.3,3486.2,0.325]
[1754241830511,1.56457,3486.3,3486.2,1.1736]
[1754241830709,1.56457,3486.3,3486.2,1.6772]
[1754241830910,1.21623,3486.0,3485.9,0.3357]
[1754241831105,3.03343,3486.0,3485.9,0.8486]
[1754241831307,3.03343,3486.0,3485.9,1.4907]
[1754241831506,3.03343,3486.0,3485.9,2.3926]
[1754241832107,2.4597,3485.9,3485.8,2.0755]
[1754241833115,3.03343,3485.9,3485.8,2.0755]
[1754241833814,3.03343,3485.9,3485.8,1.1736]
[1754241835814,2.16843,3485.9,3485.8,2.3926]
[1754241836013,2.51683,3485.9,3485.8,2.3926]
[1754241836215,3.03343,3485.9,3485.8,2.3926]
[1754241836404,3.03343,3485.9,3485.7,3.2078]
[1754241836718,3.03349,3485.6,3485.5,1.8797]
[1754241837215,3.03349,3485.6,3485.5,1.1736]
[1754241837517,3.03349,3485.6,3485.5,2.0755]
[1754241839212,0.9522,3486.2,3485.5,2.3926]
[1754241839420,3.03338,3486.2,3486.1,2.3926]
[1754241839606,2.51678,3486.2,3486.1,2.3926]
[1754241840518,3.03338,3486.2,3486.1,2.3926]
[1754241842616,3.03338,3486.2,3486.1,1.1736]
[1754241843019,3.03345,3485.8,3485.7,2.0755]
[1754241843324,3.03345,3485.8,3485.7,2.3926]
[1754241844525,0.57379,3485.6,3485.3,3.2078]
[1754241844815,1.9431,3485.6,3485.5,2.3926]
[1754241845925,2.4597,3485.6,3485.5,2.3926]
[1754241847619,1.9431,3485.6,3485.5,2.3926]
[1754241847816,2.4597,3485.6,3485.5,2.3926]
[1754241848321,2.4597,3485.6,3485.5,1.1736]
[1754241850214,2.4597,3485.6,3485.5,0.8379]
[1754241850416,2.4597,3485.4,3485.3,3.2078]
[1754241850614,2.4597,3485.4,3485.3,1.1736]
[1754241850825,2.4597,3485.4,3485.3,2.0755]
[1754241851025,2.4597,3485.4,3485.3,2.3926]
[1754241852723,2.4597,3485.4,3485.3,1.1736]
[1754241853421,0.57387,3485.1,3484.9,3.2078]
[1754241853726,2.4194,3484.6,3484.5,3.7248]
[1754241853925,2.4194,3484.6,3484.5,3.7257]
[1754241855027,2.4194,3484.6,3484.5,0.5179]
[1754241855532,2.4194,3484.6,3484.5,1.0266]
[1754241856130,2.4194,3484.9,3484.8,1.0266]
[1754241856436,0.4924,3485.2,3485.1,0.5179]
[1754241856631,0.4924,3485.2,3485.1,1.0266]
[1754241857133,0.824,3485.2,3485.1,1.0266]
[1754241857637,2.4194,3485.2,3485.1,1.0266]
[1754241857925,45.09262,3485.4,3484.7,0.57393]
[1754241858133,1.7734,3485.1,3485.0,0.3366]
[1754241858433,2.4194,3485.1,3485.0,0.8453]
[1754241858730,2.4194,3485.1,3485.0,1.0266]
[1754241863931,2.4194,3485.1,3485.0,1.0257]
[1754241864532,2.4194,3485.1,3485.0,0.517]
[1754241864734,2.4194,3485.1,3485.0,0.3366]
[1754241865232,2.4194,3485.1,3485.0,1.0639]
[1754241867732,0.6556,3484.3,3484.2,3.1022855]
[1754241867932,2.4194,3484.3,3484.2,3.6109855]
[1754241868639,2.4194,3484.3,3484.2,1.0639]
[1754241869439,0.4924,3484.7,3484.6,1.0639]
[1754241869742,0.824,3484.7,3484.6,7.63593393]
[1754241870040,2.0954,3484.7,3484.6,7.49923393]
[1754241870437,1.1384,3484.7,3484.6,7.49923393]
[1754241870742,2.4194,3484.7,3484.6,4.2717]
[1754241870942,2.4194,3484.7,3484.6,3.2078]
[1754241872338,2.4194,3484.7,3484.6,3.5444]
[1754241872538,2.4194,3484.7,3484.6,4.0531]
[1754241873034,2.4194,3484.7,3484.6,3.2078]
[1754241873238,2.4194,3484.7,3484.6,4.2717]
[1754241873438,0.4924,3484.9,3484.6,4.98234]
[1754241873745,0.4924,3484.9,3484.8,4.42813393]
[1754241875345,0.824,3484.9,3484.8,4.42813393]
[1754241876747,0.4924,3484.9,3484.8,4.42813393]
[1754241877147,0.4924,3485.5,3485.3,0.5552]
[1754241877447,2.50078,3485.7,3485.6,1.0639]
[1754241877947,2.4194,3485.3,3485.2,4.2717]
[1754241879742,0.57379,3485.6,3485.2,4.2717]
[1754241879952,2.4194,3485.7,3485.6,1.0639]
[1754241880159,2.99317,3485.7,3485.6,1.0639]
[1754241880760,2.4194,3485.7,3485.6,7.49923393]
[1754241881757,0.824,3485.7,3485.6,7.49923393]
[1754241882062,0.4924,3485.7,3485.6,7.63593393]
[1754241882655,1.1384,3485.7,3485.6,7.49923393]
[1754241882858,2.0954,3485.7,3485.6,7.49923393]
[1754241883754,2.0954,3485.7,3485.6,7.50283393]
[1754241884266,3.6747,3486.7,3486.1,0.57369]
[1754241884559,1.0856,3486.6,3486.5,4.29293393]
[1754241884756,1.9076,3486.6,3486.5,4.29293393]
[1754241884961,2.4126,3486.6,3486.5,4.29293393]
[1754241885956,1.1237,3486.6,3486.5,4.29293393]
[1754241886164,0.505,3486.6,3486.5,4.41623393]
[1754241886659,1.1237,3486.6,3486.5,4.29293393]
[1754241887760,2.4126,3487.2,3487.1,1.0654]
[1754241887957,2.4126,3487.2,3487.1,4.2732]
[1754241890264,2.4126,3487.2,3487.1,3.7508]
[1754241890562,2.4126,3487.2,3487.1,3.5535]
[1754241891558,2.4126,3487.2,3487.1,4.0723]
[1754241892065,2.4126,3487.2,3487.1,4.271]
[1754241892564,2.4126,3487.2,3487.1,4.2732]
[1754241893465,2.0743,3487.2,3487.1,4.2732]
[1754241893859,2.4126,3487.2,3487.1,4.2732]
[1754241901271,2.4126,3487.2,3487.1,7.50073393]
[1754241902066,2.4126,3487.2,3487.1,4.2732]
[1754241903464,2.4126,3487.2,3487.1,3.2078]
[1754241904565,2.4126,3487.2,3487.1,6.98053393]
[1754241904760,2.4126,3487.2,3487.1,7.62403393]
[1754241904761,0.505,3487.2,3487.1,7.62403393]
[1754241905270,1.1237,3487.7,3487.6,1.63885]
[1754241905471,0.9887,3488.1,3487.6,4.86638393]
[1754241905771,2.0958,3488.1,3488.0,0.8681]
[1754241905972,2.4126,3488.1,3488.0,1.0654]
[1754241906566,2.4126,3488.1,3488.0,0.8645]
[1754241906767,2.4126,3488.1,3488.0,1.0632]
[1754241907074,2.4126,3488.1,3488.0,1.0654]
[1754241908161,2.4126,3488.1,3488.0,0.3457]
[1754241908367,0.957,3487.8,3487.7,0.5452]
[1754241909069,1.9289,3487.8,3487.7,1.0654]
[1754241909271,0.505,3487.8,3487.7,1.1887]
[1754241909671,1.4556,3488.6,3488.1,0.5202]
[1754241909869,2.4126,3488.6,3488.5,3.77273393]
[1754241910072,2.4126,3488.6,3488.5,4.29293393]
[1754241910378,1.9289,3488.6,3488.5,3.77413393]
[1754241910571,1.1237,3488.6,3488.5,4.29293393]
[1754241912771,1.5906,3488.6,3488.5,4.29293393]
[1754241913280,2.4126,3488.6,3488.5,4.29293393]
[1754241913477,0.3168,3488.8,3488.7,1.29157]
[1754241913776,0.505,3488.8,3488.7,1.74407]
[1754241913975,0.505,3488.8,3488.7,1.1708]
[1754241914372,0.8342,3488.8,3488.7,1.0654]
[1754241914569,0.505,3488.8,3488.7,1.1708]
[1754241914770,1.8862,3489.2,3489.1,0.984]
[1754241914972,2.3666,3489.2,3489.1,0.984]
[1754241916070,0.4828,3489.2,3489.1,0.984]
[1754241916271,0.812,3489.2,3489.1,0.984]
[1754241916479,1.4318,3489.2,3489.1,0.984]
[1754241916778,2.3666,3489.2,3489.1,0.984]
[1754241917774,2.3666,3489.2,3489.0,3.2078]
[1754241917981,2.3666,3489.1,3489.0,3.2078]
[1754241918181,2.3666,3489.1,3489.0,4.0232]
[1754241918380,2.3666,3489.1,3489.0,4.1918]
[1754241919082,2.3666,3489.1,3489.0,3.5317]
[1754241920582,2.3666,3489.1,3489.0,4.1918]